Cogmind - Beta 11 @@@ ROGUE MODE // 2022.03.26 @ 14:19:46 Player: Finestep Result: Destroyed by EX-DEC with AWS/EX-DEC Performance ------------- Evolutions (1) 500 Regions Visited (4) 800 Robots Destroyed (103) 515 Value Destroyed (2148) 2148 Prototype IDs (32) 640 Alien Tech Used (0) 0 Bonus (-270) -270 TOTAL SCORE: 4333 Bonus ------- High Alert Combat Kills 150 Aligned with FarCom 300 Friendly Fire -720 Cogmind --------- Core Integrity 0/400 Matter 123/300 Energy 229/265 System Corruption 9% Temperature Cool (0) Movement Treading (240) Ox1 Location -9/Exiles Parts ------- > --- POWER (1) -------- Improved Ion Engine > --- PROPULSION (3) --- Light Treads Improved Treads > --- UTILITY (3) ------ High-capacity Storage Unit > --- WEAPON (2) ------- Minigun Minigun > --- INVENTORY (20) --- Light Nuclear Core Improved Flight Unit Improved Flight Unit Improved Flight Unit Improved Flight Unit Medium Storage Unit Large Matter Pod (150) Transport Network Coupler Experimental Targeting Computer Hacking Suite Improved EM Shotgun Improved EM Shotgun Minigun Rocket Launcher Rocket Launcher Mace Longsword +1 Peak State ------------ > --- POWER ------------ Improved Ion Engine > --- PROPULSION ------- Light Treads Light Treads Improved Treads > --- UTILITY ---------- High-capacity Storage Unit Bomb Drone Bay > --- WEAPON ----------- AWS/Gauss > --- INVENTORY -------- Light Nuclear Core Improved Flight Unit Improved Flight Unit Improved Flight Unit Improved Flight Unit Medium Storage Unit Large Matter Pod Transport Network Coupler Experimental Targeting Computer Hacking Suite Improved EM Shotgun Improved EM Shotgun Minigun Minigun Minigun Minigun Rocket Launcher Rocket Launcher Mace Longsword +1 [Rating: 42] Favorites ----------- Power Improved Ion Engine Engine Improved Ion Engine Propulsion Light Treads Treads Light Treads Leg Aluminum Leg Utility High-capacity Storage Unit Device Bomb Drone Bay Storage High-capacity Storage Unit Processor Improved Targeting Computer Protection Light Armor Plating Weapon Minigun Energy Gun Medium Laser Ballistic Gun Minigun Ballistic Cannon Improved Light Cannon Launcher Rocket Launcher Slashing Weapon Longsword +1 Build | -11 -10 -9 -9 -9 ------- Run | Scr Mat Mat Min Exi Slots Evolved 2 | . . 2 . . Power . | . . . . . Propulsion 1 | . . 1 . . Utility 1 | . . 1 . . Weapon . | . . . . . Parts Attached 69 | 7 12 32 1 17 Power 6 | 1 . 4 1 . Engine 6 | 1 . 4 1 . Core . | . . . . . Reactor . | . . . . . Propulsion 22 | 2 5 12 . 3 Treads 19 | . 4 12 . 3 Leg 3 | 2 1 . . . Wheel . | . . . . . Hover . | . . . . . Flight . | . . . . . Utility 15 | 2 4 5 . 4 Device 4 | 1 1 . . 2 Storage 3 | 1 2 . . . Processor 2 | . 1 1 . . Hackware . | . . . . . Protection 6 | . . 4 . 2 Artifact . | . . . . . Weapon 26 | 2 3 11 . 10 Energy Gun 3 | 1 2 . . . Energy Cannon . | . . . . . Ballistic Gun 15 | 1 1 6 . 7 Ballistic Cannon 4 | . . 4 . . Launcher 2 | . . 1 . 1 Special Weapon . | . . . . . Impact Weapon . | . . . . . Slashing Weapon 2 | . . . . 2 Piercing Weapon . | . . . . . Special Melee Weapon . | . . . . . Unidentified Prototypes 2 | . . 1 . 1 Parts Lost 9 | . 1 2 . 6 Power . | . . . . . Propulsion 5 | . . 1 . 4 Utility 3 | . . 1 . 2 Weapon 1 | . 1 . . . Highest Loss Streak 3 | . 1 1 . 3 To Critical Strikes 1 | . . . . 1 Average Slot Usage (%) 97 | . 99 99 100 87 Engine 11 | . 14 11 11 11 Treads 30 | . 22 32 33 32 Leg 1 | . 5 . . . Device 2 | . 4 . . 5 Storage 11 | . 14 11 11 11 Processor 8 | . 9 11 11 1 Protection 7 | . . 10 11 6 Energy Gun 2 | . 9 . . . Ballistic Gun 13 | . 18 7 22 16 Ballistic Cannon 6 | . . 14 . . Naked Turns . | . . . . . Heaviest Build 65 | 15 48 58 57 65 Greatest Support 63 | 20 40 60 60 63 Greatest Overweight (x) 4 | 4 1 . . 1 Average Overweight (x) . | . . . . . Largest Inventory Capacity 20 | 8 20 20 20 20 Average Capacity 18 | 7 13 20 20 20 Most Carried 20 | 5 20 20 20 20 Average Carried 17 | 4 12 19 19 18 Final Capacity 20 | 8 20 20 20 20 Final Carried 20 | 5 20 20 20 17 Class Distribution -------------------- 92% | Mutant 7% | Scavenger-Mutant Dominant Class ---------------- Mutant | -10/Materials Mutant | -9/Materials Mutant | -9/Mines Mutant | -9/Exiles Resources | -11 -10 -9 -9 -9 ----------- Run | Scr Mat Mat Min Exi Matter Collected 2345 | 288 469 1293 115 180 Remotely . | . . . . . Salvage Created 3599 | 79 925 2017 199 379 Parts 208 | 4 49 126 10 19 Haulers Intercepted 7 | . 2 5 . . Recyclers Shooed 5 | . 2 3 . . Parts Field Recycled . | . . . . . Retrieved Matter . | . . . . . Parts Self-Destructed . | . . . . . Prevented . | . . . . . Kills | -11 -10 -9 -9 -9 ------- Run | Scr Mat Mat Min Exi Combat Hostiles Destroyed 58 | . 14 39 2 3 Guns 30 | . 14 13 2 1 Cannons 22 | . . 22 . . AOE 6 | . . 4 . 2 Classes Destroyed 16 | 2 5 7 . 2 Worker 2 | . . 2 . . Builder 1 | . . 1 . . Tunneler 6 | 1 1 2 2 . Hauler 7 | . 2 5 . . Recycler 12 | 1 4 6 1 . Mechanic 2 | . 1 1 . . Operator 4 | . . 4 . . Watcher 7 | . 3 4 . . Swarmer 13 | . 6 7 . . Grunt 29 | . 8 19 2 . Brawler 2 | . . 2 . . Duelist 1 | . . 1 . . Protector 2 | . . 2 . . Sentry 8 | . . 8 . . Zionite 6 | . . . . 6 Assembled 7 | . . . . 7 Best Kill Streak 8 | 2 4 8 2 4 Combat Bots Only 6 | . 3 6 2 2 Max Kills in Single Turn 5 | 1 2 3 1 5 Gunslinging 1 | . 1 . . . Exploded 2 | . . 2 . 2 Melee . | . . . . . Uniques/NPCs Destroyed 1 | . . . . 1 8R-AWN (-9/Exiles) Combat | -11 -10 -9 -9 -9 -------- Run | Scr Mat Mat Min Exi Damage Taken 3562 | . 424 1575 131 1432 Core 482 | . 71 116 33 262 Absorbed by Shields . | . . . . . Regen/Repaired (Parts) 203 | . 73 130 . . Core Remaining (%) 85 | 100 71 . . . Volleys Fired 266 | 6 67 155 12 26 Largest 2 | 2 2 2 2 2 Hottest 74 | 60 70 74 50 50 Shots Fired 582 | 12 133 307 24 106 Gun 420 | 12 133 148 24 103 Cannon 156 | . . 156 . . Launcher 6 | . . 3 . 3 Special . | . . . . . Kinetic 507 | 6 70 304 24 103 Thermal 38 | . 38 . . . Explosive 6 | . . 3 . 3 Electromagnetic 31 | 6 25 . . . Robot Hit Streak 15 | 4 13 15 8 9 Robot Miss Streak 4 | 1 2 4 3 3 Penetration Max . | . . . . . Secondary Targets 3 | . 2 . 1 . Max Gunslinging Chain 1 | . 1 . 1 . Autonomous 57 | . . . . 57 Shots Hit Robots 382 | 8 91 187 15 81 Core Hits 164 | 3 40 85 7 29 Critical Kills . | . . . . . Critical Parts Destroyed 1 | . . 1 . . Critical Strikes 13 | . 5 7 . 1 Burn 4 | . 4 . . . Destroy 2 | . . 1 . 1 Blast 6 | . . 6 . . Corrupt 1 | . 1 . . . Melee Attacks 15 | . . . . 15 Impact . | . . . . . Slashing 15 | . . . . 15 Piercing . | . . . . . Sneak Attacks . | . . . . . Combat Hostiles . | . . . . . Follow-up Attacks . | . . . . . Damage Inflicted 7889 | 98 1145 3668 262 2716 Guns 4520 | 98 1145 1264 262 1751 Cannons 1766 | . . 1766 . . Explosions 993 | . . 632 . 361 Melee 604 | . . . . 604 Ramming 6 | . . 6 . . Kinetic 5648 | 49 556 3030 262 1751 Thermal 524 | . 309 215 . . Explosive 778 | . . 417 . 361 Electromagnetic 329 | 49 280 . . . Impact . | . . . . . Slashing 604 | . . . . 604 Piercing . | . . . . . Highest Corruption 9 | . . . . 9 Average Corruption 4 | . . . . 4 Corruption Purged . | . . . . . Corruption Blocked . | . . . . . Effects 2 | . . . . 2 Message Errors 2 | . . . . 2 Overload Shots . | . . . . . Overflow Damage 237 | . . 127 . 110 Projectiles 23 | . . 23 . . Explosions 116 | . . 104 . 12 Melee 98 | . . . . 98 Knockbacks 16 | . . 16 . . Impact . | . . . . . Kinetic 15 | . . 15 . . Secondary 1 | . . 1 . . Self-Inflicted Damage . | . . . . . Shots . | . . . . . Rammed 1 | . . 1 . . Targets Rammed 1 | . . 1 . . Kicked . | . . . . . Crushed . | . . . . . Highest Temperature 119 | . 72 114 119 12 Average Temperature 25 | . 24 26 47 6 Received Heat Transfer 837 | . 138 588 111 . Siege Activations . | . . . . . Robots Corrupted . | . . . . . Combat Hostiles . | . . . . . Parts Fried 1 | . 1 . . . Impact Corruptions . | . . . . . Robots Melted . | . . . . . Combat Hostiles . | . . . . . Parts Melted 2 | . 2 . . . Heat Transferred 1421 | . 1221 200 . . Parts Sabotaged . | . . . . . Parts Stolen . | . . . . . Parts Stripped . | . . . . . Power Chain Reactions . | . . . . . Missiles Intercepted . | . . . . . Alert | -11 -10 -9 -9 -9 ------- Run | Scr Mat Mat Min Exi Peak Influence 831 | 10 327 831 378 . Initial 313 | . 6 . 313 . Average 327 | 4 177 437 243 . Maximum Alert Level 3 | . 1 3 1 . Low Security (%) 43 | 100 50 34 56 . Level 1 22 | . 49 4 43 . Level 2 26 | . . 46 . . Level 3 7 | . . 14 . . Level 4 . | . . . . . Level 5 . | . . . . . High Security . | . . . . . Max Security . | . . . . . Squads Dispatched 9 | . 3 6 . . Investigation 4 | . 3 1 . . Extermination . | . . . . . Reinforcement 3 | . . 3 . . Assault 2 | . . 2 . . Garrison . | . . . . . Intercept . | . . . . . Searches Triggered . | . . . . . Construction Impeded . | . . . . . Haulers Reinforced . | . . . . . Active Scanning Responses . | . . . . . Cargo Convoy Interrupts . | . . . . . Stealth | -11 -10 -9 -9 -9 --------- Run | Scr Mat Mat Min Exi Distress Signals 7 | . 1 6 . . Communications Jammed . | . . . . . Distress Signals . | . . . . . Times Spotted 120 | . 27 74 2 17 Peak Tracking Total 8 | . 3 8 2 5 Tactical Retreats 13 | . 4 7 . 2 Traps | -11 -10 -9 -9 -9 ------- Run | Scr Mat Mat Min Exi Traps Triggered 3 | . 1 2 . . Indirectly . | . . . . . Trap Hack Attempts . | . . . . . Triggered . | . . . . . Disarmed . | . . . . . Reprogrammed 5 | . 5 . . . Reused . | . . . . . Traps Extracted . | . . . . . Installed . | . . . . . Triggered 1 | . . . 1 . Machines | -11 -10 -9 -9 -9 ---------- Run | Scr Mat Mat Min Exi Machines Disabled 13 | . . 4 . 9 Max in Single Turn 1 | . . 1 . 1 Machines Sabotaged . | . . . . . Garrisons Compromised . | . . . . . Overloaded Fab Kills . | . . . . . Hacking | -11 -10 -9 -9 -9 --------- Run | Scr Mat Mat Min Exi Machines Accessed 25 | . 11 11 1 2 Terminals 15 | . 8 7 . . Fabricators . | . . . . . Repair Stations 3 | . 1 2 . . Recycling Units 3 | . 2 1 . . Scanalyzers 1 | . . 1 . . Garrison Access . | . . . . . Total Hacks 84 | . 39 39 1 5 Successful 51 | . 22 23 1 5 Failed 32 | . 16 16 . . Catastrophic 1 | . 1 . . . Database Lockouts 1 | . 1 . . . Manual 38 | . 16 21 . 1 Terminals 61 | . 31 30 . . Fabricators . | . . . . . Repair Stations 8 | . 4 4 . . Recycling Units 6 | . 4 2 . . Scanalyzers 3 | . . 3 . . Garrison Access . | . . . . . Terminal Hacks 28 | . 11 11 1 5 Record 4 | . . . . 4 Part Schematic 1 | . . 1 . . Robot Analysis 4 | . 4 . . . Prototype ID Bank 4 | . 2 2 . . Open Door 1 | . . . 1 . Unreport Threat 2 | . 1 1 . . Locate Traps 4 | . 2 2 . . Reprogram Traps 1 | . 1 . . . Dispatch Records 1 | . . 1 . . Transport Status 1 | . . 1 . . Hauler Manifests 2 | . 1 1 . . Registered Prototypes 1 | . . 1 . . Zone Layout 1 | . . 1 . . EX-Prototype ID Bank 1 | . . . . 1 Fabricator Hacks . | . . . . . Repair Station Hacks 5 | . 3 2 . . Scan Component 3 | . 2 1 . . Repair 2 | . 1 1 . . Recycling Unit Hacks 2 | . 1 1 . . Retrieve Components 2 | . 1 1 . . Scanalyzer 3 | . . 3 . . Insert Component 1 | . . 1 . . Analyze 2 | . . 2 . . Garrison Access Hacks . | . . . . . Unauthorized Hacks 13 | . 7 6 . . Terminals 8 | . 4 4 . . Track 3 | . 1 2 . . Botnet 3 | . 1 2 . . Disrupt 1 | . 1 . . . Operators 1 | . 1 . . . Fabricators . | . . . . . Repair Stations 2 | . 1 1 . . Mechanics 2 | . 1 1 . . Recycling Units 3 | . 2 1 . . Tunnel 3 | . 2 1 . . Scanalyzers . | . . . . . Garrison Access . | . . . . . Data Cores Recovered . | . . . . . Used . | . . . . . Hacking Detections 21 | . 10 11 . . Full Trace Events . | . . . . . Feedback Events . | . . . . . Feedback Blocked . | . . . . . Robot Schematics Acquired . | . . . . . Robots Built . | . . . . . Authchips . | . . . . . Time . | . . . . . Total Robot Build Rating . | . . . . . Part Schematics Acquired 2 | . . 2 . . Parts Built . | . . . . . Authchips . | . . . . . Time . | . . . . . Total Part Build Rating . | . . . . . Parts Repaired 2 | . 1 1 . . Time 58 | . 26 32 . . Parts Recycled . | . . . . . Recycled Matter . | . . . . . Retrieved Matter . | . . . . . Retrieved Components 12 | . 3 9 . . Parts Scanalyzed 1 | . . 1 . . Part Schematics Acquired 1 | . . 1 . . Parts Damaged . | . . . . . Bothacking | -11 -10 -9 -9 -9 ------------ Run | Scr Mat Mat Min Exi Used RIF Installer . | . . . . . Robots Hacked . | . . . . . Non-combat . | . . . . . Combat . | . . . . . Robot Hacks Applied . | . . . . . Relay Couplers Released . | . . . . . Fabnet Peak Effective % . | . . . . . Robots Rewired . | . . . . . Allies Hacked . | . . . . . Hacks Repelled . | . . . . . Allies | -11 -10 -9 -9 -9 -------- Run | Scr Mat Mat Min Exi Total Allies 1 | . . . 1 . Largest Group 1 | . . . 1 . Highest-Rated Group 31 | . . . 31 . Highest-Rated Ally 31 | . . . 31 . Total Orders 1 | . . . . 1 RETURN 1 | . . . . 1 Ally Attacks 4 | . . . . 4 Total Damage . | . . . . . Kills . | . . . . . Allies Corrupted . | . . . . . Allies Melted . | . . . . . Intel | -11 -10 -9 -9 -9 ------- Run | Scr Mat Mat Min Exi Robot Analysis Total 4 | . 4 . . . Derelict Logs Recovered 2 | . . . 2 . Drone Launches 5 | . . . . 5 Drone Recoveries 1 | . . . . 1 Exploration | -11 -10 -9 -9 -9 ------------- Run | Scr Mat Mat Min Exi Turns Passed 7424 | 126 1679 3386 922 1311 Spaces Moved 3816 | 72 846 1745 554 599 Core 27 | 27 . . . . Treads 3576 | . 678 1745 554 599 Legs 213 | 45 168 . . . Wheels . | . . . . . Hover . | . . . . . Flight . | . . . . . Fastest Speed 50 | 50 120 160 160 160 Average Speed 165 | 130 162 160 160 194 Slowest Speed 250 | 250 240 160 160 240 Overloaded Moves . | . . . . . Propulsion Burnouts . | . . . . . Robots Hopped . | . . . . . Cave-ins Triggered . | . . . . . Exploration Rate (%) 72 | 5 97 89 99 73 Regions Visited 4 Branch Regions 2 Pre-discovered Areas 4 | . 2 1 . 1 Known Exits Taken . | . . . . . Unknown Exits Taken 4 | 1 1 1 1 . Scrap Searched 2 | . . . 2 . Spaces Dug 1 | . . . . 1 Terrain Destroyed 63 | . . 43 . 20 Melee 1 | . . . . 1 Projectile 14 | . . . . 14 AOE 48 | . . 43 . 5 Terrain Rammed . | . . . . . Walls Destroyed . | . . . . . Machines Disabled . | . . . . . Actions | -11 -10 -9 -9 -9 --------- Run | Scr Mat Mat Min Exi Total 4433 | 89 1015 2063 572 694 Wait 153 | . 63 75 . 15 Move 3812 | 71 845 1744 553 599 Hop . | . . . . . Pick Up 54 | 5 21 19 2 7 Fast Attach 24 | 7 4 6 1 6 Attach 18 | . 4 6 . 8 Detach 3 | . . . . 3 Swap 27 | . 4 20 . 3 Drop 60 | . 7 37 4 12 Fire 266 | 6 67 155 12 26 Melee 15 | . . . . 15 Ram . | . . . . . Kick . | . . . . . Crush 1 | . . 1 . . Escape Stasis . | . . . . . Rewire . | . . . . . Trap . | . . . . . Miscellaneous . | . . . . . Route ------- -11/Scrapyard -10/Materials (discovered 5 exits: *Mat x3 / [*Min x2]) -9/Materials (discovered 5 exits: [*Mat x3] / *Min x2) -9/Mines (discovered 3 exits: [*Mat x2] / *Exi) -9/Exiles History --------- Turn | Location | Event 6 | -11/Scrapyard | Discovered new exit (range 16) 127 | -11/Scrapyard | Entered Materials 312 | -10/Materials | Build established: Mutant 423 | -10/Materials | Central database locked down 604 | -10/Materials | Discovered new exit (range 10) 784 | -10/Materials | Discovered new exit (range 4) 836 | -10/Materials | Repaired Lgt. Treads 1180 | -10/Materials | Discovered new exit (range 8) 1430 | -10/Materials | Discovered new exit (range 15) 1460 | -10/Materials | Discovered new exit (range 16) 1806 | -10/Materials | Entered another Materials area 1806 | -9/Materials | Evolved 2 slots: Propulsion x1, Utility x1 2470 | -9/Materials | Build established: Scavenger-Mutant 2548 | -9/Materials | Discovered new exit (range 10) 2697 | -9/Materials | Discovered new exit (range 3) 2913 | -9/Materials | Build established: Mutant 3118 | -9/Materials | Discovered new exit (range 15) 3261 | -9/Materials | Discovered new exit (range 16) 3549 | -9/Materials | Discovered new exit (range 5) 4576 | -9/Materials | Repaired Imp. Light Cannon 4606 | -9/Materials | First assault squad dispatched 5192 | -9/Materials | Entered Mines 5218 | -9/Mines | Received a Rocket Launcher from a helpful Derelict 5238 | -9/Mines | Learned Materials interactive machine intel 5382 | -9/Mines | Discovered new exit (range 9) 5605 | -9/Mines | Discovered new exit (range 9) 5649 | -9/Mines | Received a Mining Laser from a helpful Derelict 5991 | -9/Mines | Found the Drone Emporium 6003 | -9/Mines | Found Prototype Device 6106 | -9/Mines | Deemed a non-threat by the Exiles lab entrance 6106 | -9/Mines | Discovered new exit (range 5) 6114 | -9/Mines | Entered Exiles 6154 | -9/Exiles | Met 8R-AWN 6183 | -9/Exiles | Met EX-HEX 6230 | -9/Exiles | Met EX-BIN 6249 | -9/Exiles | Aligned with FarCom system 6250 | -9/Exiles | Given EX-Vault access code 6287 | -9/Exiles | Opened EX-Vault 6296 | -9/Exiles | Identified Bomb Drone Bay 6345 | -9/Exiles | Warned to stay clear of 0b10 Research branches 6415 | -9/Exiles | Met EX-DEC 6424 | -9/Exiles | Learned location of Zion (-6) 6519 | -9/Exiles | Visited The Gauntlet 6778 | -9/Exiles | Found AWS/Gauss 6792 | -9/Exiles | Found Longsword +1 7015 | -9/Exiles | Attacked by the Exiles 7053 | -9/Exiles | Core integrity fell below 50% 7090 | -9/Exiles | Destroyed 8R-AWN 7113 | -9/Exiles | Found Prototype Processor 7400 | -9/Exiles | Core integrity fell below 20% 7425 | -9/Exiles | Destroyed by EX-DEC with AWS/EX-DEC Last Messages --------------- 07305_ Sneak attack on A-02 Transporter. 07305_ A-02 Transporter destroyed. 07307_ Acquired 18 matter. 07309_ Sneak attack on A-02 Transporter. 07311_ Destroyed Ion Engine. 07311_ A-02 Transporter destroyed. 07315_ Acquired Lgt. Treads. 07319_ Acquired 10 matter. 07373_ W1-DM0 destroyed. 07376_ AM-PHS destroyed. 07381_ J5-HVA destroyed. 07384_ Destroyed EX Chip 1. 07389_ Machine disabled. 07395_ FZDSHHI YSDE03XDPKRJKH 07395_ Machine disabled. 07411_ Lgt. Treads destroyed. 07419_ OB/FJ3UALX#UN4 4|TDIS4 EHI6E9JF I 07423_ Dropped Minigun. 07423_ Bomb Drone Bay destroyed. 07424_ Acquired Minigun. Map ----- +----------------------------------------------------+ | ?????## # | | ??????# ## " | | ??????# # " " "" | | ??????## ""## ##" " " "" | | ???????####" ""#### ###### "" """# | | ??????????#" """"##??# #????###""""## | | ??????????#""" """#??## ####????#####? | | ??????????## ""##??#! "!#?????????? | | ???????????#"" """##???#" !#?????????? | | ???????????##""" ##????#" "#?????????? | | ????????????##"""" ##?????# !""!"#?????????? | | ?????????????### #??????########?????????? | | ???????????????##### ##???????????????????????? | | ???????????????????## #????????????????????????? | | ????????????????????# #????????????????????????? | | ????????????????????# #????????????????????????? | | ????????????????????# #????????????????????????? | | ???????????###??????# #????????????????????????? | | ?????????#"""""?????# #????????????????????????? | | ??????????"""""""???# #????????????????????????? | | ?????????#" """"#??# #????????????????????????? | | ??????????"" """???# #????????????????????????? | | ? ????????"" ""???#% #????????????????????????? | | #"""########"""######%= ########?????????????????? | | " """""""" """"""%* """ "#?????????????????? | | """""" == [@ #"" "?????????????? | | * " ""????????????? | | %= " " "????????????? | | ! " ""?????????????? | | "" c #"" "?????????????? | | " """""=%] " " " """""#?"???????????????? | | #"""###""###"""########"""######?????????????????? | | " ???#""#"" ""?????" ""?????????????????????? | | ""????#""#""" ""?????" """?????????????????????? | | ??????"""#" " "#????""""""#????????????????????? | | ??????????"""""""?????" """??????????????????????? | | ??????????"""""""#?????"""???????????????????????? | | ????????????##?#?????????????????????????????????? | | ?????????????????????????????????????????????????? | | ?????????????????????????????????????????????????? | | ?????????????????????????????????????????????????? | | ?????????????????????????????????????????????????? | | | | | | | | | | | | | | | | | +----------------------------------------------------+ Best States ------------- Heat Dissipation 28 Energy Generation 14 Energy Capacity 280 Matter Stores 300 Matter Capacity 300 Sight Range 16 Terrain Scan Density 10 Armor Coverage 300 Evasion (%) 55 Targeting Accuracy 6 Recoil Reduction 3 Authchip Count 1 Item Schematics ----------------- Hcp. Storage Unit | -9/Materials | Hacked Hacking Suite | -9/Materials | Scanalyzed Robot Schematics ------------------ None Fabricated ------------ Nothing Alien Tech Used ----------------- None Achievements -------------- None Challenges ------------ None Game ------ Seed ShadingChipArchive Manual? 0 Play Time 00:40:58 Cumulative 562.9 hours Start 2022.03.26 @ 13:02:19 End 2022.03.26 @ 14:19:46 Sessions 3 Manual Loads 0 Difficulty Rogue Special Mode None Game No. 356 Rogue 356 Adventurer 0 Explorer 0 Win Type - Total 7 Types 5/0/1/0/1/0/0/0/0 Lore% 83 Gallery% 85 Achievement% 73 Wizard Run 0 Options --------- ASCII 0 Keyboard 0 Movement Mouse Keybinds 1 Fullscreen 2 Font 24/Smallcaps Map View 68x50 Tactical HUD 1 Map Filters NONE Filters NONE Steam 1 RUN: 44ec4172-3115-4271-b74a-9fe3aec46c64